[Event "Titled Tuesday Blitz May 03 Early 2022"]
[White "De Souza, Cristiano Gomes"]
[Black "Borgaonkar Akshay"]
[WhiteFideId "2151758"]
[BlackFideId "25639110"]
[WhiteElo "2068"]
[BlackElo "1624"]
[Result "0-1"]
[Round "08"]
[TimeControl "180+1"]
[Date "2022.05.03"]
[WhiteClock "0:00:22"]
[BlackClock "0:00:28"]

1. d4 {[%clk 0:03:00]}  Nf6 {[%clk 0:02:59]} 2. c4 {[%clk 0:03:00]}  e6 {[%clk 0:02:59]} 3. Nf3 {[%clk 0:03:00]}  d5 {[%clk 0:03:00]} 4. Nc3 {[%clk 0:02:59]}  c6 {[%clk 0:02:59]} 5. Bg5 {[%clk 0:02:58]}  Be7 {[%clk 0:02:59]} 6. e3 {[%clk 0:02:58]}  O-O {[%clk 0:02:59]} 7. Rc1 {[%clk 0:02:57]}  Nbd7 {[%clk 0:02:58]} 8. Bd3 {[%clk 0:02:56]}  h6 {[%clk 0:02:58]} 9. Bh4 {[%clk 0:02:56]}  a6 {[%clk 0:02:56]} 10. O-O {[%clk 0:02:55]}  dxc4 {[%clk 0:02:54]} 11. Bxc4 {[%clk 0:02:55]}  b5 {[%clk 0:02:55]} 12. Bd3 {[%clk 0:02:54]}  Bb7 {[%clk 0:02:55]} 13. Bxf6 {[%clk 0:02:53]}  Nxf6 {[%clk 0:02:55]} 14. Ne4 {[%clk 0:02:53]}  Rc8 {[%clk 0:02:54]} 15. Ne5 {[%clk 0:02:49]}  c5 {[%clk 0:02:39]} 16. Nxc5 {[%clk 0:02:41]}  Bxc5 {[%clk 0:02:39]} 17. dxc5 {[%clk 0:02:40]}  Qd5 {[%clk 0:02:37]} 18. c6 {[%clk 0:02:40]}  Ba8 {[%clk 0:02:33]} 19. Nf3 {[%clk 0:02:35]}  Bxc6 {[%clk 0:02:32]} 20. b3 {[%clk 0:02:31]}  Rfd8 {[%clk 0:02:30]} 21. Be2 {[%clk 0:02:31]}  Qf5 {[%clk 0:02:28]} 22. Qe1 {[%clk 0:02:30]}  e5 {[%clk 0:02:15]} 23. Qa5 {[%clk 0:02:24]}  Bb7 {[%clk 0:01:51]} 24. Rfd1 {[%clk 0:02:20]}  Rxd1+ {[%clk 0:01:45]} 25. Rxd1 {[%clk 0:02:19]}  Qc2 {[%clk 0:01:40]} 26. Qd2 {[%clk 0:01:45]}  Qxd2 {[%clk 0:01:38]} 27. Rxd2 {[%clk 0:01:44]}  Rc1+ {[%clk 0:01:37]} 28. Rd1 {[%clk 0:01:43]}  Rxd1+ {[%clk 0:01:36]} 29. Bxd1 {[%clk 0:01:42]}  Nd7 {[%clk 0:01:33]} 30. Kf1 {[%clk 0:01:41]}  f6 {[%clk 0:01:32]} 31. Nd2 {[%clk 0:01:40]}  Kf7 {[%clk 0:01:32]} 32. Bf3 {[%clk 0:01:40]}  Bxf3 {[%clk 0:01:32]} 33. Nxf3 {[%clk 0:01:39]}  Ke6 {[%clk 0:01:32]} 34. Ke2 {[%clk 0:01:40]}  Kd5 {[%clk 0:01:31]} 35. Nd2 {[%clk 0:01:39]}  Nc5 {[%clk 0:01:29]} 36. f3 {[%clk 0:01:37]}  f5 {[%clk 0:01:29]} 37. g3 {[%clk 0:01:33]}  g6 {[%clk 0:01:28]} 38. h3 {[%clk 0:01:33]}  a5 {[%clk 0:01:26]} 39. a3 {[%clk 0:01:32]}  a4 {[%clk 0:01:22]} 40. bxa4 {[%clk 0:01:30]}  bxa4 {[%clk 0:01:19]} 41. Kf2 {[%clk 0:01:23]}  Nd3+ {[%clk 0:01:15]} 42. Ke2 {[%clk 0:01:23]}  Nb2 {[%clk 0:01:13]} 43. h4 {[%clk 0:01:16]}  h5 {[%clk 0:01:11]} 44. e4+ {[%clk 0:01:11]}  Kd4 {[%clk 0:01:08]} 45. exf5 {[%clk 0:01:10]}  gxf5 {[%clk 0:01:07]} 46. g4 {[%clk 0:01:11]}  fxg4 {[%clk 0:00:51]} 47. fxg4 {[%clk 0:01:11]}  hxg4 {[%clk 0:00:52]} 48. h5 {[%clk 0:01:11]}  Nd3 {[%clk 0:00:53]} 49. h6 {[%clk 0:01:04]}  Nf4+ {[%clk 0:00:52]} 50. Kf2 {[%clk 0:01:04]}  Ng6 {[%clk 0:00:52]} 51. Kg3 {[%clk 0:01:04]}  e4 {[%clk 0:00:48]} 52. Kxg4 {[%clk 0:01:03]}  e3 {[%clk 0:00:48]} 53. Nf3+ {[%clk 0:01:02]}  Kd3 {[%clk 0:00:48]} 54. Kf5 {[%clk 0:01:01]}  Nf8 {[%clk 0:00:39]} 55. Kf6 {[%clk 0:00:57]}  e2 {[%clk 0:00:38]} 56. Kf7 {[%clk 0:00:52]}  Nh7 {[%clk 0:00:37]} 57. Kg7 {[%clk 0:00:50]}  Ng5 {[%clk 0:00:37]} 58. Nxg5 {[%clk 0:00:41]}  e1=Q {[%clk 0:00:36]} 59. h7 {[%clk 0:00:41]}  Qe5+ {[%clk 0:00:36]} 60. Kh6 {[%clk 0:00:37]}  Qf6+ {[%clk 0:00:35]} 61. Kh5 {[%clk 0:00:37]}  Kc2 {[%clk 0:00:26]} 62. Ne4 {[%clk 0:00:23]}  Qe5+ {[%clk 0:00:25]} 63. Kh6 {[%clk 0:00:23]}  Qxe4 {[%clk 0:00:24]} 64. h8=Q {[%clk 0:00:22]}  Qh4+ {[%clk 0:00:24]} 65. Kg7 {[%clk 0:00:22]}  Qxh8+ {[%clk 0:00:25]} 66. Kxh8 {[%clk 0:00:23]}  Kb3 {[%clk 0:00:26]} 67. Kg7 {[%clk 0:00:24]}  Kxa3 {[%clk 0:00:27]} 68. Kf6 {[%clk 0:00:22]}  Kb2 {[%clk 0:00:28]} 0-1


[Site "https://www.chess.com"]

[Event "Titled Tuesday Blitz May 03 Early 2022"]
[White "Delorme, Alban"]
[Black "Matveeva, Olga"]
[WhiteFideId "623636"]
[BlackFideId "24107018"]
[WhiteElo "2197"]
[BlackElo "2083"]
[Result "1-0"]
[Round "08"]
[TimeControl "180+1"]
[Date "2022.05.03"]
[WhiteClock "0:00:57"]
[BlackClock "0:00:17"]

1. d4 {[%clk 0:03:00]}  Nf6 {[%clk 0:02:59]} 2. Nf3 {[%clk 0:02:57]}  e6 {[%clk 0:02:59]} 3. g3 {[%clk 0:02:56]}  d5 {[%clk 0:02:57]} 4. Bg2 {[%clk 0:02:56]}  Be7 {[%clk 0:02:57]} 5. O-O {[%clk 0:02:57]}  O-O {[%clk 0:02:58]} 6. c4 {[%clk 0:02:57]}  dxc4 {[%clk 0:02:56]} 7. Qc2 {[%clk 0:02:56]}  a6 {[%clk 0:02:55]} 8. a4 {[%clk 0:02:56]}  Bd7 {[%clk 0:02:56]} 9. Qxc4 {[%clk 0:02:56]}  Bc6 {[%clk 0:02:56]} 10. Bg5 {[%clk 0:02:54]}  a5 {[%clk 0:02:48]} 11. Nc3 {[%clk 0:02:54]}  Na6 {[%clk 0:02:47]} 12. Rfd1 {[%clk 0:02:51]}  Nb4 {[%clk 0:02:46]} 13. Bxf6 {[%clk 0:02:51]}  Bxf6 {[%clk 0:02:45]} 14. e4 {[%clk 0:02:52]}  g6 {[%clk 0:02:29]} 15. d5 {[%clk 0:02:38]}  exd5 {[%clk 0:02:25]} 16. exd5 {[%clk 0:02:38]}  Bd7 {[%clk 0:02:24]} 17. h4 {[%clk 0:02:37]}  h5 {[%clk 0:02:18]} 18. Rd2 {[%clk 0:02:31]}  Bg4 {[%clk 0:02:16]} 19. Ne4 {[%clk 0:02:26]}  Bg7 {[%clk 0:02:13]} 20. Nfg5 {[%clk 0:02:24]}  Qd7 {[%clk 0:02:04]} 21. Nc5 {[%clk 0:02:23]}  Qc8 {[%clk 0:01:50]} 22. Qf4 {[%clk 0:02:15]}  c6 {[%clk 0:01:48]} 23. dxc6 {[%clk 0:02:14]}  bxc6 {[%clk 0:01:47]} 24. Re1 {[%clk 0:02:08]}  Nd5 {[%clk 0:01:42]} 25. Bxd5 {[%clk 0:02:03]}  cxd5 {[%clk 0:01:43]} 26. Rxd5 {[%clk 0:02:03]}  Bxb2 {[%clk 0:01:40]} 27. Re7 {[%clk 0:02:02]}  Qc6 {[%clk 0:01:28]} 28. Qc4 {[%clk 0:01:17]}  Bf6 {[%clk 0:01:00]} 29. Rxf7 {[%clk 0:01:13]}  Rxf7 {[%clk 0:00:55]} 30. Nxf7 {[%clk 0:01:14]}  Re8 {[%clk 0:00:29]} 31. Rd8 {[%clk 0:01:02]}  Kh7 {[%clk 0:00:24]} 32. Ng5+ {[%clk 0:00:58]}  Bxg5 {[%clk 0:00:19]} 33. Qf7+ {[%clk 0:00:57]}  Kh6 {[%clk 0:00:18]} 34. hxg5+ {[%clk 0:00:57]}  Kxg5 {[%clk 0:00:17]} 35. Qf4# {[%clk 0:00:57]} 1-0


[Site "https://www.chess.com"]

[Event "Titled Tuesday Blitz May 03 Early 2022"]
[White "Demchenko, Anton"]
[Black "Deac, Bogdan-Daniel"]
[WhiteFideId "4160258"]
[BlackFideId "1226380"]
[WhiteElo "2539"]
[BlackElo "2648"]
[Result "1/2-1/2"]
[Round "08"]
[TimeControl "180+1"]
[Date "2022.05.03"]
[WhiteClock "0:00:07"]
[BlackClock "0:00:03"]

1. e4 {[%clk 0:03:00]}  e5 {[%clk 0:03:00]} 2. Nf3 {[%clk 0:03:01]}  Nf6 {[%clk 0:03:00]} 3. Nxe5 {[%clk 0:03:01]}  d6 {[%clk 0:03:00]} 4. Nf3 {[%clk 0:03:02]}  Nxe4 {[%clk 0:03:01]} 5. Nc3 {[%clk 0:03:00]}  Nf6 {[%clk 0:03:01]} 6. d4 {[%clk 0:03:00]}  g6 {[%clk 0:03:01]} 7. h3 {[%clk 0:02:58]}  Bg7 {[%clk 0:03:00]} 8. Qe2+ {[%clk 0:02:50]}  Qe7 {[%clk 0:03:00]} 9. Qxe7+ {[%clk 0:02:48]}  Kxe7 {[%clk 0:03:01]} 10. Bg5 {[%clk 0:02:42]}  Re8 {[%clk 0:02:59]} 11. O-O-O {[%clk 0:02:39]}  Kf8 {[%clk 0:02:58]} 12. Bd3 {[%clk 0:02:35]}  a6 {[%clk 0:02:51]} 13. Rhe1 {[%clk 0:02:18]}  Nc6 {[%clk 0:02:50]} 14. a3 {[%clk 0:02:13]}  Bd7 {[%clk 0:02:37]} 15. Bxf6 {[%clk 0:01:52]}  Bxf6 {[%clk 0:02:36]} 16. Nd5 {[%clk 0:01:53]}  Bd8 {[%clk 0:02:30]} 17. c3 {[%clk 0:01:52]}  Na7 {[%clk 0:02:01]} 18. Rxe8+ {[%clk 0:01:39]}  Bxe8 {[%clk 0:02:01]} 19. Re1 {[%clk 0:01:27]}  Bd7 {[%clk 0:01:50]} 20. Kc2 {[%clk 0:01:22]}  c6 {[%clk 0:01:33]} 21. Ne3 {[%clk 0:01:23]}  Be7 {[%clk 0:01:16]} 22. h4 {[%clk 0:01:02]}  Re8 {[%clk 0:01:12]} 23. h5 {[%clk 0:00:59]}  Bf6 {[%clk 0:01:11]} 24. Rh1 {[%clk 0:00:57]}  b5 {[%clk 0:00:59]} 25. hxg6 {[%clk 0:00:36]}  hxg6 {[%clk 0:01:00]} 26. Nd2 {[%clk 0:00:37]}  Nc8 {[%clk 0:00:51]} 27. Ne4 {[%clk 0:00:36]}  Be7 {[%clk 0:00:51]} 28. a4 {[%clk 0:00:31]}  Nb6 {[%clk 0:00:36]} 29. a5 {[%clk 0:00:31]}  Na8 {[%clk 0:00:34]} 30. b4 {[%clk 0:00:26]}  Nc7 {[%clk 0:00:32]} 31. Rh8+ {[%clk 0:00:26]}  Kg7 {[%clk 0:00:32]} 32. Rxe8 {[%clk 0:00:27]}  Bxe8 {[%clk 0:00:31]} 33. f4 {[%clk 0:00:27]}  f5 {[%clk 0:00:29]} 34. Nd2 {[%clk 0:00:19]}  c5 {[%clk 0:00:29]} 35. Nf3 {[%clk 0:00:14]}  cxb4 {[%clk 0:00:21]} 36. cxb4 {[%clk 0:00:15]}  Bf7 {[%clk 0:00:20]} 37. g3 {[%clk 0:00:13]}  Bf6 {[%clk 0:00:11]} 38. Kc3 {[%clk 0:00:11]}  Kf8 {[%clk 0:00:10]} 39. Be2 {[%clk 0:00:09]}  Be6 {[%clk 0:00:09]} 40. Bd3 {[%clk 0:00:10]}  Ke7 {[%clk 0:00:09]} 41. Be2 {[%clk 0:00:09]}  Kd7 {[%clk 0:00:05]} 42. Bf1 {[%clk 0:00:09]}  Nd5+ {[%clk 0:00:04]} 43. Nxd5 {[%clk 0:00:09]}  Bxd5 {[%clk 0:00:05]} 44. Ng5 {[%clk 0:00:09]}  Bxg5 {[%clk 0:00:02]} 45. fxg5 {[%clk 0:00:10]}  Be4 {[%clk 0:00:02]} 46. Kd2 {[%clk 0:00:10]}  d5 {[%clk 0:00:02]} 47. Ke3 {[%clk 0:00:09]}  Kd6 {[%clk 0:00:02]} 48. Kf4 {[%clk 0:00:10]}  Bc2 {[%clk 0:00:01]} 49. Be2 {[%clk 0:00:10]}  Bb1 {[%clk 0:00:01]} 50. g4 {[%clk 0:00:11]}  Be4 {[%clk 0:00:02]} 51. gxf5 {[%clk 0:00:10]}  Bxf5 {[%clk 0:00:02]} 52. Bf3 {[%clk 0:00:11]}  Be6 {[%clk 0:00:02]} 53. Bd1 {[%clk 0:00:09]}  Bf5 {[%clk 0:00:02]} 54. Be2 {[%clk 0:00:09]}  Bd7 {[%clk 0:00:03]} 55. Bd3 {[%clk 0:00:09]}  Be8 {[%clk 0:00:03]} 56. Bc2 {[%clk 0:00:10]}  Bf7 {[%clk 0:00:03]} 57. Bd3 {[%clk 0:00:09]}  Be8 {[%clk 0:00:04]} 58. Be2 {[%clk 0:00:09]}  Bd7 {[%clk 0:00:04]} 59. Bf3 {[%clk 0:00:10]}  Bf5 {[%clk 0:00:03]} 60. Bh5 {[%clk 0:00:08]}  Ke6 {[%clk 0:00:02]} 61. Be2 {[%clk 0:00:08]}  Kd6 {[%clk 0:00:03]} 62. Bf1 {[%clk 0:00:07]}  Bd7 {[%clk 0:00:03]} 63. Bd3 {[%clk 0:00:07]}  Be8 {[%clk 0:00:03]} 1/2-1/2


[Site "https://www.chess.com"]

[Event "Titled Tuesday Blitz May 03 Early 2022"]
[White "Ezat, Mohamed"]
[Black "Pham, Tran Gia Phuc"]
[WhiteFideId "10600906"]
[BlackFideId "12415669"]
[WhiteElo "2386"]
[BlackElo "1789"]
[Result "1-0"]
[Round "08"]
[TimeControl "180+1"]
[Date "2022.05.03"]
[WhiteClock "0:00:50"]
[BlackClock "0:00:47"]

1. d4 {[%clk 0:03:00]}  Nf6 {[%clk 0:02:59]} 2. c4 {[%clk 0:03:00]}  c5 {[%clk 0:03:00]} 3. d5 {[%clk 0:02:59]}  e6 {[%clk 0:02:59]} 4. Nc3 {[%clk 0:02:59]}  exd5 {[%clk 0:02:59]} 5. cxd5 {[%clk 0:03:00]}  d6 {[%clk 0:03:00]} 6. e4 {[%clk 0:03:00]}  g6 {[%clk 0:03:00]} 7. f4 {[%clk 0:03:00]}  Bg7 {[%clk 0:03:00]} 8. Bb5+ {[%clk 0:03:00]}  Nfd7 {[%clk 0:03:01]} 9. Be2 {[%clk 0:02:59]}  O-O {[%clk 0:02:55]} 10. Nf3 {[%clk 0:02:59]}  Na6 {[%clk 0:02:44]} 11. O-O {[%clk 0:02:58]}  Nc7 {[%clk 0:02:44]} 12. Kh1 {[%clk 0:02:58]}  Re8 {[%clk 0:02:44]} 13. f5 {[%clk 0:02:57]}  Ne5 {[%clk 0:02:42]} 14. Bg5 {[%clk 0:02:55]}  f6 {[%clk 0:02:41]} 15. Nxe5 {[%clk 0:02:39]}  Rxe5 {[%clk 0:02:31]} 16. Bf4 {[%clk 0:02:38]}  Re8 {[%clk 0:02:31]} 17. fxg6 {[%clk 0:02:38]}  hxg6 {[%clk 0:02:31]} 18. Bg4 {[%clk 0:02:34]}  f5 {[%clk 0:02:28]} 19. exf5 {[%clk 0:02:33]}  Bxf5 {[%clk 0:02:28]} 20. Bxf5 {[%clk 0:02:31]}  gxf5 {[%clk 0:02:28]} 21. Qh5 {[%clk 0:02:28]}  Qf6 {[%clk 0:02:27]} 22. Bg3 {[%clk 0:02:21]}  Rf8 {[%clk 0:02:22]} 23. Ne4 {[%clk 0:02:20]}  Qxb2 {[%clk 0:02:17]} 24. Ng5 {[%clk 0:02:19]}  Rf6 {[%clk 0:02:16]} 25. Qh7+ {[%clk 0:02:12]}  Kf8 {[%clk 0:02:15]} 26. Rab1 {[%clk 0:02:06]}  Qxa2 {[%clk 0:02:07]} 27. Rxb7 {[%clk 0:01:59]}  Qa6 {[%clk 0:01:58]} 28. Rfb1 {[%clk 0:01:57]}  Qd3 {[%clk 0:01:58]} 29. Ne6+ {[%clk 0:01:46]}  Rxe6 {[%clk 0:01:27]} 30. dxe6 {[%clk 0:01:44]}  Nxe6 {[%clk 0:01:27]} 31. Qh5 {[%clk 0:01:23]}  Nd8 {[%clk 0:01:19]} 32. R7b3 {[%clk 0:01:16]}  Qd5 {[%clk 0:01:13]} 33. Rf3 {[%clk 0:01:11]}  Kg8 {[%clk 0:01:05]} 34. Rxf5 {[%clk 0:01:07]}  Qe6 {[%clk 0:00:53]} 35. Rbf1 {[%clk 0:01:02]}  Rb8 {[%clk 0:00:53]} 36. Qg4 {[%clk 0:00:56]}  Rb4 {[%clk 0:00:49]} 37. Rf8+ {[%clk 0:00:49]}  Kh7 {[%clk 0:00:48]} 38. Qh5+ {[%clk 0:00:50]}  Qh6 {[%clk 0:00:47]} 39. Qxh6+ {[%clk 0:00:50]}  Kxh6 {[%clk 0:00:47]} 40. Rxd8 {[%clk 0:00:50]} 1-0


[Site "https://www.chess.com"]

[Event "Titled Tuesday Blitz May 03 Early 2022"]
[White "Fedoseev, Vladimir"]
[Black "Kollars, Dmitrij"]
[WhiteFideId "24130737"]
[BlackFideId "12909572"]
[WhiteElo "2726"]
[BlackElo "2584"]
[Result "1-0"]
[Round "08"]
[TimeControl "180+1"]
[Date "2022.05.03"]
[WhiteClock "0:00:15"]
[BlackClock "0:00:02"]

1. d4 {[%clk 0:03:00]}  Nf6 {[%clk 0:02:58]} 2. Bf4 {[%clk 0:03:00]}  d5 {[%clk 0:02:58]} 3. e3 {[%clk 0:03:01]}  e6 {[%clk 0:02:59]} 4. Nf3 {[%clk 0:03:00]}  Bd6 {[%clk 0:02:59]} 5. Bg3 {[%clk 0:02:58]}  c5 {[%clk 0:02:59]} 6. dxc5 {[%clk 0:02:57]}  Bxc5 {[%clk 0:02:56]} 7. Nbd2 {[%clk 0:02:58]}  O-O {[%clk 0:02:55]} 8. c4 {[%clk 0:02:56]}  Nc6 {[%clk 0:02:52]} 9. a3 {[%clk 0:02:56]}  a5 {[%clk 0:02:49]} 10. Be2 {[%clk 0:02:55]}  Qe7 {[%clk 0:02:49]} 11. O-O {[%clk 0:02:47]}  Rd8 {[%clk 0:02:45]} 12. Qc2 {[%clk 0:02:47]}  d4 {[%clk 0:02:34]} 13. exd4 {[%clk 0:02:42]}  Nxd4 {[%clk 0:02:34]} 14. Nxd4 {[%clk 0:02:42]}  Bxd4 {[%clk 0:02:35]} 15. Nf3 {[%clk 0:02:36]}  Bc5 {[%clk 0:02:31]} 16. Ne5 {[%clk 0:02:18]}  Bd7 {[%clk 0:02:30]} 17. Bf3 {[%clk 0:02:19]}  Be8 {[%clk 0:02:26]} 18. Rfd1 {[%clk 0:02:13]}  a4 {[%clk 0:02:23]} 19. Nd3 {[%clk 0:02:08]}  Bd4 {[%clk 0:02:17]} 20. Be5 {[%clk 0:01:56]}  Rac8 {[%clk 0:02:10]} 21. Rac1 {[%clk 0:01:47]}  h6 {[%clk 0:01:58]} 22. Qe2 {[%clk 0:01:44]}  Bxe5 {[%clk 0:01:22]} 23. Nxe5 {[%clk 0:01:38]}  Rxd1+ {[%clk 0:01:14]} 24. Rxd1 {[%clk 0:01:37]}  Qc7 {[%clk 0:01:06]} 25. h4 {[%clk 0:00:54]}  Nd7 {[%clk 0:00:55]} 26. Nxd7 {[%clk 0:00:49]}  Bxd7 {[%clk 0:00:56]} 27. Rd4 {[%clk 0:00:49]}  Bc6 {[%clk 0:00:52]} 28. Bxc6 {[%clk 0:00:47]}  Qxc6 {[%clk 0:00:53]} 29. Qd3 {[%clk 0:00:44]}  e5 {[%clk 0:00:39]} 30. Rd5 {[%clk 0:00:43]}  g6 {[%clk 0:00:25]} 31. c5 {[%clk 0:00:33]}  b6 {[%clk 0:00:25]} 32. h5 {[%clk 0:00:27]}  bxc5 {[%clk 0:00:17]} 33. Rd6 {[%clk 0:00:26]}  Qb7 {[%clk 0:00:05]} 34. hxg6 {[%clk 0:00:26]}  Qxb2 {[%clk 0:00:03]} 35. gxf7+ {[%clk 0:00:23]}  Kf8 {[%clk 0:00:04]} 36. Qg6 {[%clk 0:00:15]}  Qc1+ {[%clk 0:00:03]} 37. Kh2 {[%clk 0:00:15]}  Qf4+ {[%clk 0:00:04]} 38. Kh3 {[%clk 0:00:16]}  Qxf7 {[%clk 0:00:02]} 39. Rf6 {[%clk 0:00:15]} 1-0


[Site "https://www.chess.com"]

[Event "Titled Tuesday Blitz May 03 Early 2022"]
[White "Fernandez Siles, Luis"]
[Black "Petrovic, Aleksa"]
[WhiteFideId "2209420"]
[BlackFideId "967629"]
[WhiteElo "2212"]
[BlackElo "2198"]
[Result "0-1"]
[Round "08"]
[TimeControl "180+1"]
[Date "2022.05.03"]
[WhiteClock "0:00:03"]
[BlackClock "0:00:34"]

1. e4 {[%clk 0:03:00]}  e6 {[%clk 0:02:59]} 2. d4 {[%clk 0:03:00]}  d5 {[%clk 0:02:59]} 3. e5 {[%clk 0:03:01]}  c5 {[%clk 0:02:58]} 4. Qg4 {[%clk 0:03:00]}  Ne7 {[%clk 0:02:56]} 5. Nf3 {[%clk 0:02:58]}  Nec6 {[%clk 0:02:55]} 6. Bd3 {[%clk 0:02:46]}  Nb4 {[%clk 0:02:49]} 7. a3 {[%clk 0:02:36]}  Nxd3+ {[%clk 0:02:47]} 8. cxd3 {[%clk 0:02:36]}  b6 {[%clk 0:02:46]} 9. O-O {[%clk 0:02:09]}  Ba6 {[%clk 0:02:46]} 10. Rd1 {[%clk 0:02:09]}  h5 {[%clk 0:02:38]} 11. Qf4 {[%clk 0:02:00]}  Nc6 {[%clk 0:02:31]} 12. Nc3 {[%clk 0:01:53]}  Qc7 {[%clk 0:02:27]} 13. Be3 {[%clk 0:01:44]}  f6 {[%clk 0:01:47]} 14. Qg3 {[%clk 0:01:04]}  O-O-O {[%clk 0:01:36]} 15. Rac1 {[%clk 0:01:02]}  fxe5 {[%clk 0:01:33]} 16. Bg5 {[%clk 0:00:30]}  exd4 {[%clk 0:01:13]} 17. Qxc7+ {[%clk 0:00:28]}  Kxc7 {[%clk 0:01:14]} 18. Bxd8+ {[%clk 0:00:28]}  Kxd8 {[%clk 0:01:13]} 19. Ne2 {[%clk 0:00:26]}  Bd6 {[%clk 0:01:08]} 20. b4 {[%clk 0:00:19]}  Kd7 {[%clk 0:01:06]} 21. bxc5 {[%clk 0:00:18]}  bxc5 {[%clk 0:01:01]} 22. Rb1 {[%clk 0:00:18]}  e5 {[%clk 0:01:01]} 23. Ng5 {[%clk 0:00:18]}  Rb8 {[%clk 0:00:45]} 24. Ng3 {[%clk 0:00:17]}  Rxb1 {[%clk 0:00:43]} 25. Rxb1 {[%clk 0:00:17]}  Bxd3 {[%clk 0:00:43]} 26. Rb7+ {[%clk 0:00:16]}  Kc8 {[%clk 0:00:43]} 27. Rxg7 {[%clk 0:00:15]}  c4 {[%clk 0:00:42]} 28. Nf7 {[%clk 0:00:13]}  Bc7 {[%clk 0:00:39]} 29. Rg6 {[%clk 0:00:03]}  Bxg6 {[%clk 0:00:34]} 0-1


[Site "https://www.chess.com"]

[Event "Titled Tuesday Blitz May 03 Early 2022"]
[White "Grischuk, Alexander"]
[Black "Tanenbaum, Zachary"]
[WhiteFideId "4126025"]
[BlackFideId "2060850"]
[WhiteElo "2762"]
[BlackElo "2168"]
[Result "0-1"]
[Round "08"]
[TimeControl "180+1"]
[Date "2022.05.03"]
[WhiteClock "0:01:20"]
[BlackClock "0:00:31"]

1. d4 {[%clk 0:03:00]}  d5 {[%clk 0:02:59]} 2. Nf3 {[%clk 0:03:00]}  Nf6 {[%clk 0:03:00]} 3. Bf4 {[%clk 0:03:01]}  c5 {[%clk 0:03:00]} 4. e3 {[%clk 0:03:01]}  Nc6 {[%clk 0:03:00]} 5. Be2 {[%clk 0:03:01]}  Qb6 {[%clk 0:03:00]} 6. Nc3 {[%clk 0:02:59]}  cxd4 {[%clk 0:02:59]} 7. Nb5 {[%clk 0:02:49]}  dxe3 {[%clk 0:02:32]} 8. Nc7+ {[%clk 0:02:48]}  Kd8 {[%clk 0:02:32]} 9. Nxa8 {[%clk 0:02:48]}  Qb4+ {[%clk 0:02:32]} 10. c3 {[%clk 0:02:43]}  Qxf4 {[%clk 0:02:33]} 11. O-O {[%clk 0:02:32]}  e6 {[%clk 0:02:02]} 12. c4 {[%clk 0:02:32]}  Bc5 {[%clk 0:01:48]} 13. cxd5 {[%clk 0:02:27]}  exf2+ {[%clk 0:01:47]} 14. Kh1 {[%clk 0:02:28]}  exd5 {[%clk 0:01:47]} 15. Rc1 {[%clk 0:02:28]}  Be3 {[%clk 0:01:44]} 16. Rc3 {[%clk 0:02:28]}  Re8 {[%clk 0:01:36]} 17. Bb5 {[%clk 0:02:25]}  d4 {[%clk 0:01:16]} 18. Bxc6 {[%clk 0:01:59]}  bxc6 {[%clk 0:01:16]} 19. Rxe3 {[%clk 0:01:59]}  Rxe3 {[%clk 0:00:59]} 20. Nxd4 {[%clk 0:02:00]}  Ke8 {[%clk 0:00:55]} 21. Nf3 {[%clk 0:01:38]}  Ng4 {[%clk 0:00:50]} 22. Qc2 {[%clk 0:01:26]}  Rxf3 {[%clk 0:00:39]} 23. Qxh7 {[%clk 0:01:23]}  Qxh2+ {[%clk 0:00:32]} 24. Qxh2 {[%clk 0:01:22]}  Nxh2 {[%clk 0:00:33]} 25. Kxh2 {[%clk 0:01:22]}  Rf6 {[%clk 0:00:32]} 26. Kg3 {[%clk 0:01:20]}  Kd8 {[%clk 0:00:31]} 0-1


[Site "https://www.chess.com"]

[Event "Titled Tuesday Blitz May 03 Early 2022"]
[White "Hansen, Eric"]
[Black "Preotu, Razvan"]
[WhiteFideId "2606771"]
[BlackFideId "2613280"]
[WhiteElo "2568"]
[BlackElo "2407"]
[Result "0-1"]
[Round "08"]
[TimeControl "180+1"]
[Date "2022.05.03"]
[WhiteClock "0:00:01"]
[BlackClock "0:00:15"]

1. Nf3 {[%clk 0:03:00]}  c5 {[%clk 0:02:58]} 2. g3 {[%clk 0:03:00]}  Nc6 {[%clk 0:02:58]} 3. Bg2 {[%clk 0:03:01]}  e5 {[%clk 0:02:58]} 4. d3 {[%clk 0:03:00]}  d5 {[%clk 0:02:59]} 5. O-O {[%clk 0:03:00]}  Be7 {[%clk 0:02:59]} 6. e4 {[%clk 0:02:34]}  d4 {[%clk 0:02:58]} 7. a4 {[%clk 0:02:33]}  Be6 {[%clk 0:02:56]} 8. Na3 {[%clk 0:02:32]}  h5 {[%clk 0:02:54]} 9. Nc4 {[%clk 0:02:18]}  Qc7 {[%clk 0:02:54]} 10. h3 {[%clk 0:02:02]}  h4 {[%clk 0:02:48]} 11. g4 {[%clk 0:01:59]}  Bxc4 {[%clk 0:02:39]} 12. dxc4 {[%clk 0:01:59]}  Nd8 {[%clk 0:02:13]} 13. Ne1 {[%clk 0:01:56]}  Ne6 {[%clk 0:02:12]} 14. Nd3 {[%clk 0:01:54]}  Bg5 {[%clk 0:02:09]} 15. Bxg5 {[%clk 0:01:52]}  Nxg5 {[%clk 0:02:10]} 16. Nxe5 {[%clk 0:01:45]}  Qxe5 {[%clk 0:01:54]} 17. f4 {[%clk 0:01:44]}  Qc7 {[%clk 0:01:29]} 18. fxg5 {[%clk 0:01:44]}  Ne7 {[%clk 0:01:29]} 19. e5 {[%clk 0:01:21]}  Qxe5 {[%clk 0:01:26]} 20. Re1 {[%clk 0:01:08]}  Qxg5 {[%clk 0:01:25]} 21. Qe2 {[%clk 0:01:08]}  Rh6 {[%clk 0:01:11]} 22. Bxb7 {[%clk 0:00:56]}  Rb8 {[%clk 0:00:48]} 23. Qg2 {[%clk 0:00:48]}  Kf8 {[%clk 0:00:43]} 24. b3 {[%clk 0:00:43]}  Ng6 {[%clk 0:00:43]} 25. Be4 {[%clk 0:00:29]}  Nf4 {[%clk 0:00:43]} 26. Qh2 {[%clk 0:00:28]}  Re8 {[%clk 0:00:41]} 27. Bf5 {[%clk 0:00:21]}  Re3 {[%clk 0:00:22]} 28. Rxe3 {[%clk 0:00:09]}  dxe3 {[%clk 0:00:23]} 29. Rf1 {[%clk 0:00:09]}  e2 {[%clk 0:00:23]} 30. Re1 {[%clk 0:00:09]}  Rd6 {[%clk 0:00:22]} 31. Rxe2 {[%clk 0:00:05]}  Rd1+ {[%clk 0:00:18]} 32. Kf2 {[%clk 0:00:05]}  Nxe2 {[%clk 0:00:19]} 33. Bd3 {[%clk 0:00:02]}  Ng3 {[%clk 0:00:17]} 34. Kf3 {[%clk 0:00:01]}  Rd2 {[%clk 0:00:15]} 0-1


[Site "https://www.chess.com"]